bitfinex/quotes_BTCUSD_20241226
["timestamp","ask_amount","ask_price","bid_price","bid_amount"]
[1735206061645,0.09131976,95801.0,95798.0,0.0011714]
[1735206061869,0.11431976,95799.0,95798.0,0.0021714]
[1735206062123,0.11617766,95799.0,95798.0,0.0011714]
[1735206062333,0.1174826,95799.0,95798.0,0.0021714]
[1735206063547,0.1174826,95799.0,95798.0,0.0001714]
[1735206064326,0.1174826,95799.0,95798.0,0.0011714]
[1735206064538,0.1174826,95799.0,95798.0,0.0021714]
[1735206066505,0.17879346,95799.0,95798.0,0.0021714]
[1735206066971,0.1174826,95799.0,95798.0,0.0021714]
[1735206067618,0.27076892,95799.0,95798.0,0.0021714]
[1735206067833,0.51946398,95799.0,95798.0,0.0021714]
[1735206068636,0.51946398,95799.0,95798.0,0.0011714]
[1735206068784,0.51946398,95799.0,95798.0,0.0001714]
[1735206068987,0.6264503,95799.0,95798.0,0.0011714]
[1735206070401,0.52146398,95799.0,95798.0,0.0011714]
[1735206070873,0.52246398,95799.0,95798.0,0.0011714]
[1735206071074,0.09617766,95799.0,95798.0,0.0011714]
[1735206071287,0.0048579,95799.0,95798.0,0.0011714]
[1735206071497,0.001,95799.0,95798.0,0.0001714]
[1735206071704,0.003,95799.0,95798.0,0.0011714]
[1735206071907,0.002,95799.0,95798.0,0.0011714]
[1735206072118,0.00130479,95805.0,95799.0,0.20877]
[1735206072486,0.00174307,95804.0,95799.0,0.20877]
[1735206072711,0.00130479,95805.0,95799.0,0.20877]
[1735206073309,0.00130479,95805.0,95801.0,0.09348543]
[1735206073511,0.09131976,95806.0,95801.0,0.09348543]
[1735206074585,0.09131976,95806.0,95802.0,0.208763]
[1735206075212,0.09231976,95806.0,95802.0,0.208763]
[1735206075573,0.09131976,95806.0,95800.0,0.09348543]
[1735206075785,0.09231976,95806.0,95800.0,0.09348543]
[1735206075984,0.00130478,95805.0,95800.0,0.09348543]
[1735206076185,0.00130478,95805.0,95801.0,0.09348543]
[1735206077093,0.09131976,95802.0,95801.0,0.09348543]
[1735206077308,0.19132467,95802.0,95801.0,0.09348543]
[1735206077480,0.19308975,95802.0,95801.0,0.09348543]
[1735206077715,0.231766,95801.0,95799.0,0.09369738]
[1735206077892,0.11562468,95800.0,95799.0,0.09369738]
[1735206078110,0.45095761,95800.0,95799.0,0.09369738]
[1735206078314,0.59965269,95800.0,95799.0,0.09369738]
[1735206078783,0.07136442,95800.0,95799.0,0.00021195]
[1735206078986,0.11738925,95800.0,95799.0,0.00021195]
[1735206079151,0.11938925,95800.0,95799.0,0.00021195]
[1735206079353,0.11738925,95800.0,95799.0,0.00021195]
[1735206079554,0.11938925,95800.0,95799.0,0.00121195]
[1735206080138,0.12038925,95800.0,95799.0,0.00121195]
[1735206080339,0.02906949,95800.0,95799.0,0.00121195]
[1735206080551,0.11938925,95800.0,95799.0,0.00121195]
[1735206080924,0.11838925,95800.0,95799.0,0.00021195]
[1735206081324,0.12138925,95800.0,95799.0,0.00021195]
[1735206081502,0.30323391,95800.0,95799.0,0.00021195]
[1735206081704,0.37862884,95800.0,95799.0,0.00021195]
[1735206081910,0.38262884,95800.0,95799.0,0.00021195]
[1735206082248,0.62462884,95800.0,95799.0,0.00021195]
[1735206082878,0.62362884,95800.0,95799.0,0.00021195]
[1735206083069,0.62762884,95800.0,95799.0,0.00021195]
[1735206083267,0.62862884,95800.0,95799.0,0.00021195]
[1735206083645,0.62762884,95800.0,95799.0,0.00021195]
[1735206084064,0.62462884,95800.0,95799.0,0.00021195]
[1735206084440,0.62762884,95800.0,95799.0,0.00021195]
[1735206088682,0.62762884,95800.0,95799.0,0.00021196]
[1735206089504,0.62762884,95800.0,95799.0,0.00038336]
[1735206089699,0.5497705,95800.0,95799.0,0.00038336]
[1735206090008,0.54920545,95800.0,95799.0,0.00038336]
[1735206091190,0.17278418,95800.0,95799.0,0.00038336]
[1735206091406,0.09838923,95800.0,95799.0,0.00038336]
[1735206092269,0.12138923,95800.0,95799.0,0.00038336]
[1735206094049,0.12038923,95800.0,95799.0,0.00038336]
[1735206094276,0.11738923,95800.0,95799.0,0.00038336]
[1735206094473,0.12038923,95800.0,95799.0,0.00038336]
[1735206095278,0.11838923,95800.0,95799.0,0.00038336]
[1735206095661,0.12138923,95800.0,95799.0,0.00038336]
[1735206096038,0.09738923,95800.0,95799.0,0.00038336]
[1735206096195,0.00576442,95800.0,95799.0,0.07938336]
[1735206096646,0.004,95800.0,95799.0,0.07938336]
[1735206096896,0.003,95800.0,95799.0,0.07938337]
[1735206097147,8.57e-05,95806.0,95800.0,0.208768]
[1735206097439,8.57e-05,95806.0,95804.0,0.208757]
[1735206097632,0.09140546,95806.0,95804.0,0.00021197]
[1735206097925,0.00304025,95805.0,95804.0,0.00021197]
[1735206099500,0.00130478,95805.0,95804.0,0.00021197]
[1735206099709,0.00304091,95805.0,95804.0,0.00021197]
[1735206102691,0.00304091,95805.0,95804.0,0.00221197]
[1735206103021,8.57e-05,95806.0,95805.0,0.208757]
[1735206103225,8.57e-05,95806.0,95805.0,0.20896897]
[1735206104044,8.57e-05,95806.0,95805.0,0.00021197]
[1735206104271,8.57e-05,95806.0,95805.0,0.20896897]
[1735206104481,8.57e-05,95806.0,95805.0,0.31295529]
[1735206104705,8.57e-05,95806.0,95805.0,0.54195529]
[1735206104917,8.57e-05,95806.0,95805.0,0.5429553]
[1735206105725,8.57e-05,95806.0,95805.0,0.5439553]
[1735206106555,8.57e-05,95806.0,95805.0,0.54813431]
[1735206107271,8.57e-05,95806.0,95805.0,0.65212063]
[1735206107493,8.57e-05,95806.0,95805.0,0.66263087]
[1735206107691,8.57e-05,95806.0,95805.0,0.76503001]
[1735206108465,8.57e-05,95806.0,95805.0,0.75534977]
[1735206108665,8.57e-05,95806.0,95805.0,1.00650401]
[1735206108891,8.57e-05,95806.0,95805.0,1.00850402]
[1735206109234,8.57e-05,95813.0,95812.0,0.358742]
[1735206109437,8.57e-05,95813.0,95812.0,0.46294032]
[1735206110449,8.57e-05,95813.0,95812.0,0.208954]
[1735206110951,8.57e-05,95813.0,95812.0,0.30356503]
[1735206111327,8.57e-05,95813.0,95812.0,0.51053767]
[1735206111553,8.57e-05,95813.0,95812.0,0.30256503]
[1735206111761,0.0010857,95813.0,95812.0,0.30256503]
[1735206111964,0.0010857,95813.0,95812.0,0.208954]
[1735206112351,8.57e-05,95813.0,95812.0,0.208954]
[1735206113862,0.0010857,95813.0,95812.0,0.208954]
[1735206114078,8.57e-05,95813.0,95812.0,0.209954]
[1735206114281,8.57e-05,95813.0,95812.0,0.213954]
[1735206114450,8.57e-05,95813.0,95812.0,0.212954]
[1735206114672,8.57e-05,95813.0,95812.0,0.210954]
[1735206114875,8.57e-05,95813.0,95812.0,0.214954]
[1735206115421,8.57e-05,95813.0,95812.0,0.28178474]
[1735206115625,8.57e-05,95813.0,95812.0,0.214954]
[1735206116441,8.57e-05,95813.0,95812.0,0.006212]
[1735206116607,8.57e-05,95813.0,95812.0,0.000212]
[1735206116809,0.0261547,95813.0,95812.0,0.000212]
[1735206117010,0.0261547,95813.0,95812.0,0.006212]
[1735206117476,0.0261547,95813.0,95812.0,0.000212]
[1735206117882,0.02485003,95813.0,95812.0,0.002212]
[1735206118084,0.02485003,95813.0,95812.0,0.001212]
[1735206118599,0.02485003,95813.0,95812.0,0.002212]
[1735206119939,0.0230857,95813.0,95812.0,0.002212]
[1735206120156,0.02439038,95813.0,95812.0,0.002212]
[1735206120357,0.02615287,95813.0,95812.0,0.002212]
[1735206120765,0.11747263,95813.0,95812.0,0.002212]
[1735206121321,0.11616795,95813.0,95812.0,0.002212]
[1735206121554,0.11747273,95813.0,95812.0,0.000212]
[1735206121995,0.11947273,95813.0,95812.0,0.000212]
[1735206123243,0.11747273,95813.0,95812.0,0.000212]
[1735206123690,0.11947273,95813.0,95812.0,0.000212]
[1735206123924,0.12797706,95813.0,95812.0,0.000212]
[1735206124151,0.12997706,95813.0,95812.0,0.000212]
[1735206124390,0.11947273,95813.0,95812.0,0.000212]
[1735206126659,0.02815297,95813.0,95812.0,0.000212]
[1735206126896,0.00184819,95813.0,95812.0,0.000212]
[1735206127301,0.02815296,95813.0,95812.0,0.000212]
[1735206127508,0.00384819,95813.0,95812.0,0.000212]
[1735206127715,0.0020857,95813.0,95812.0,0.000212]
[1735206127929,0.0020857,95813.0,95812.0,0.04200024]
[1735206128134,0.0020857,95813.0,95812.0,0.10524198]
[1735206129171,0.0020857,95813.0,95812.0,0.13651558]
[1735206129366,8.57e-05,95813.0,95812.0,0.13651558]
[1735206129792,0.0020857,95813.0,95812.0,0.13651558]
[1735206130245,0.0020857,95813.0,95812.0,0.31972661]
[1735206130482,8.56e-05,95832.0,95826.0,0.20871]
[1735206130689,8.56e-05,95832.0,95831.0,0.2087]
[1735206130899,8.56e-05,95832.0,95831.0,0.31289832]
[1735206131096,8.56e-05,95832.0,95831.0,0.31289831]
[1735206133831,8.56e-05,95832.0,95831.0,0.31989831]
[1735206134036,8.56e-05,95832.0,95831.0,0.41688463]
[1735206134484,8.56e-05,95832.0,95831.0,0.42088463]
[1735206134710,8.56e-05,95832.0,95831.0,0.42388463]
[1735206134949,8.56e-05,95832.0,95831.0,0.31989831]
[1735206135350,8.56e-05,95832.0,95831.0,0.3304066]
[1735206135813,8.56e-05,95832.0,95831.0,0.3234066]
[1735206136042,8.56e-05,95832.0,95831.0,0.3304066]
[1735206136276,8.56e-05,95832.0,95831.0,0.3274066]
[1735206136512,8.56e-05,95832.0,95831.0,0.43539292]
[1735206136760,8.56e-05,95832.0,95831.0,0.66647316]
[1735206137012,8.56e-05,95832.0,95831.0,0.66447315]
[1735206137210,6e-07,95832.0,95831.0,0.83559098]
[1735206137417,0.09262357,95876.0,95866.0,0.208622]
[1735206137630,0.09262357,95876.0,95867.0,0.0208622]
[1735206137848,0.00158658,95875.0,95868.0,0.20862]
[1735206138045,0.00130386,95874.0,95868.0,0.20883198]
[1735206138457,0.00158526,95873.0,95868.0,0.20883198]
[1735206139169,0.00130386,95872.0,95868.0,0.2526636]
[1735206139828,0.00130386,95874.0,95868.0,0.2546636]
[1735206140029,0.00158394,95871.0,95868.0,0.25366359]
[1735206140244,0.00130386,95874.0,95868.0,0.25366359]
[1735206140451,0.00130386,95874.0,95868.0,0.21183197]
[1735206140655,0.00150459,95873.0,95868.0,0.00421197]
[1735206140851,0.00280845,95873.0,95868.0,0.00421197]
[1735206141197,0.00280845,95873.0,95868.0,0.00321197]
[1735206141403,0.00280845,95873.0,95868.0,0.00421197]
[1735206141807,0.00280845,95873.0,95868.0,0.02549537]
[1735206142013,0.00280845,95873.0,95869.0,0.208618]
[1735206142215,0.00130386,95873.0,95869.0,0.00021197]
[1735206142418,0.00130386,95875.0,95869.0,0.00021197]
[1735206142628,0.023,95871.0,95869.0,0.00021197]
[1735206142926,0.00130392,95870.0,95869.0,0.00021197]
[1735206143102,0.023,95870.0,95869.0,0.00021197]
[1735206143324,0.02452483,95870.0,95869.0,0.00021197]
[1735206144684,0.02452483,95870.0,95869.0,0.00121197]
[1735206145217,0.023,95870.0,95869.0,0.00121197]
[1735206145451,0.023,95870.0,95869.0,0.00221197]
[1735206145743,0.023,95870.0,95869.0,0.00121197]
[1735206146182,0.023,95870.0,95869.0,0.00221197]
[1735206146656,0.09131976,95870.0,95869.0,0.00221197]
[1735206146908,0.05118498,95870.0,95869.0,0.00221197]
[1735206147139,0.05271968,95870.0,95869.0,0.00221197]
[1735206147352,0.18451968,95870.0,95869.0,0.00221197]
[1735206147569,0.35855202,95870.0,95869.0,0.00121197]
[1735206147788,0.56020197,95870.0,95869.0,0.00121197]
[1735206148491,0.67058208,95870.0,95869.0,0.00121197]
[1735206149126,0.57058208,95870.0,95869.0,0.00221197]
[1735206149339,0.67058208,95870.0,95869.0,0.00121197]
[1735206149766,0.04988095,95837.0,95836.0,0.09345643]
[1735206149982,0.05118538,95837.0,95836.0,0.09345643]
[1735206150198,0.05269699,95837.0,95836.0,0.09345643]
[1735206150423,0.05269699,95837.0,95831.0,0.0001712]
[1735206150669,0.208694,95834.0,95831.0,0.0001712]
[1735206150881,0.04988095,95832.0,95831.0,0.0001712]
[1735206151118,0.25988344,95832.0,95831.0,0.0001712]
[1735206151336,0.26022798,95832.0,95831.0,0.0001712]
[1735206152124,0.26122798,95832.0,95831.0,0.0001712]
[1735206152742,0.3882143,95832.0,95831.0,0.0001712]
[1735206152965,0.3872143,95832.0,95831.0,0.0001712]
[1735206153221,0.3892143,95832.0,95831.0,0.0001712]
[1735206153428,0.00364903,95832.0,95831.0,0.0001712]
[1735206154272,8.56e-05,95870.0,95834.0,0.1]
[1735206154537,0.0006051,95870.0,95864.0,0.208627]
[1735206154736,0.00257889,95869.0,95865.0,0.208626]
[1735206154945,0.0006051,95870.0,95865.0,0.208626]
[1735206155150,0.04988095,95869.0,95865.0,0.208626]
[1735206155350,0.0096051,95870.0,95864.0,0.208628]
[1735206155558,0.0006051,95870.0,95867.0,0.208622]
[1735206155778,0.0006051,95870.0,95867.0,0.417244]
[1735206156819,0.0006051,95870.0,95867.0,0.208622]
[1735206157406,0.0006051,95870.0,95867.0,0.209622]
[1735206158138,0.0006051,95870.0,95867.0,0.210622]
[1735206158386,0.0006051,95870.0,95867.0,0.2734101]
[1735206158558,0.0006051,95870.0,95869.0,0.208618]
[1735206158764,0.0006051,95870.0,95869.0,0.46260432]
[1735206159556,0.0006051,95870.0,95869.0,0.358618]
[1735206159757,0.0006051,95870.0,95869.0,0.360618]
[1735206159935,0.00130363,95887.0,95870.0,0.15]
[1735206160141,0.20995307,95887.0,95872.0,0.15]
[1735206160346,0.0030132,95886.0,95873.0,0.208609]
[1735206160664,0.00130379,95885.0,95874.0,0.15]
[1735206160869,0.00130379,95885.0,95875.0,0.208604]
[1735206161077,0.00130379,95885.0,95876.0,0.06712033]
[1735206161270,0.00130379,95885.0,95877.0,0.2086]
[1735206161477,0.00130377,95884.0,95877.0,0.2086]
[1735206161671,7.044e-05,95887.0,95877.0,0.2086]
[1735206161672,0.00137421,95887.0,95877.0,0.2086]
[1735206161899,0.00269844,95886.0,95878.0,0.417196]
[1735206162114,0.00137421,95887.0,95879.0,0.04698318]
[1735206162327,0.00137421,95887.0,95877.0,0.2086]
[1735206162643,0.00269557,95886.0,95877.0,0.2086]
[1735206162850,0.00130375,95885.0,95877.0,0.2086]
[1735206163053,0.00269557,95886.0,95870.0,0.02044578]
[1735206163259,0.00130375,95885.0,95874.0,0.15]
[1735206163429,0.00399955,95885.0,95881.0,0.208591]
[1735206163642,0.00130375,95885.0,95881.0,0.208591]
[1735206163955,0.00130375,95885.0,95881.0,0.2444501]
[1735206164186,0.00130373,95884.0,95881.0,0.2444501]
[1735206164370,0.00137417,95887.0,95875.0,0.208604]
[1735206164771,0.00269712,95886.0,95875.0,0.208604]
[1735206164927,0.00130378,95885.0,95875.0,0.208604]
[1735206165107,0.05118473,95885.0,95875.0,0.208604]
[1735206165967,0.05118473,95885.0,95881.0,0.001]
[1735206166371,0.00270637,95884.0,95875.0,0.208604]
[1735206166543,0.00130378,95883.0,95875.0,0.210604]
[1735206166752,0.00130378,95883.0,95875.0,0.211604]
[1735206166980,0.00130378,95883.0,95875.0,0.209604]
[1735206167179,0.00130378,95883.0,95881.0,0.002]
[1735206167352,0.04988095,95885.0,95881.0,0.419182]
[1735206167930,0.04988095,95885.0,95881.0,0.210591]
[1735206168675,0.04988095,95885.0,95881.0,0.208591]
[1735206169050,7.044e-05,95887.0,95884.0,0.208585]
[1735206169257,7.044e-05,95887.0,95886.0,0.208581]
[1735206170550,7.044e-05,95887.0,95886.0,0.211581]
[1735206170964,7.044e-05,95887.0,95886.0,0.003]
[1735206171165,0.00269177,95887.0,95886.0,0.003]
[1735206171403,0.417144,95890.0,95886.0,0.003]
[1735206171604,0.00272555,95887.0,95886.0,0.003]
[1735206171799,0.417144,95890.0,95886.0,0.003]
[1735206172027,0.00272555,95887.0,95886.0,0.003]
[1735206172195,0.417144,95890.0,95873.0,0.09345643]
[1735206172401,0.00272555,95887.0,95874.0,0.208607]
[1735206172637,0.00272819,95889.0,95886.0,0.002]
[1735206172828,0.417144,95890.0,95886.0,0.002]
[1735206172987,0.001,95887.0,95886.0,0.001]
[1735206173414,0.00272555,95887.0,95874.0,0.208607]
[1735206173618,0.001,95887.0,95874.0,0.208607]
[1735206173821,0.00272423,95886.0,95874.0,0.208607]
[1735206174027,0.417144,95890.0,95874.0,0.208607]
[1735206174227,0.00272292,95885.0,95874.0,0.208607]
[1735206174429,0.001,95887.0,95873.0,7.044e-05]
[1735206174680,0.0027216,95884.0,95873.0,7.044e-05]
[1735206174875,0.21130523,95886.0,95873.0,7.044e-05]
[1735206175081,0.00272136,95883.0,95873.0,7.044e-05]
[1735206175623,0.00272136,95882.0,95873.0,7.044e-05]
[1735206175777,0.208587,95883.0,95873.0,7.044e-05]
[1735206175931,0.00272136,95881.0,95873.0,7.044e-05]
[1735206176155,0.208581,95886.0,95873.0,7.044e-05]
[1735206176361,0.00272292,95885.0,95873.0,7.044e-05]
[1735206176569,0.00272292,95885.0,95874.0,0.208607]
[1735206176811,0.208576,95888.0,95874.0,0.208607]
[1735206177019,0.00272263,95884.0,95874.0,0.208607]
[1735206177221,0.208576,95888.0,95874.0,0.208607]
[1735206177421,0.00272263,95883.0,95874.0,0.208607]
[1735206177594,0.208576,95888.0,95874.0,0.208607]
[1735206177809,0.00272263,95882.0,95874.0,0.208607]
[1735206177974,0.208576,95888.0,95874.0,0.208607]
[1735206178177,0.00272555,95887.0,95874.0,0.208607]
[1735206179448,0.00372555,95887.0,95874.0,0.208607]
[1735206180959,0.10398632,95886.0,95873.0,7.044e-05]
[1735206181157,0.013,95874.0,95873.0,7.044e-05]
[1735206181479,0.29687708,95874.0,95873.0,7.044e-05]
[1735206181699,0.31829233,95874.0,95873.0,7.044e-05]
[1735206182126,0.37098206,95874.0,95873.0,7.044e-05]
[1735206182339,0.66948206,95874.0,95873.0,7.044e-05]
[1735206182548,0.68011267,95874.0,95873.0,7.044e-05]
[1735206182905,0.63342294,95874.0,95873.0,7.044e-05]
[1735206183377,0.62742294,95874.0,95873.0,7.044e-05]
[1735206183576,0.63442294,95874.0,95873.0,0.00107044]
[1735206185175,0.63842294,95874.0,95873.0,0.00107044]
[1735206185808,0.63842294,95874.0,95873.0,0.00124144]
[1735206186018,0.74240926,95874.0,95873.0,0.00124144]
[1735206186656,0.53842294,95874.0,95873.0,0.00124144]
[1735206186920,0.63842294,95874.0,95873.0,0.00124144]
[1735206190084,0.53842294,95874.0,95873.0,0.00124144]
[1735206191311,0.53142294,95874.0,95873.0,0.00024144]
[1735206191523,0.20750769,95874.0,95873.0,0.00124144]
[1735206191736,0.19450769,95874.0,95873.0,0.00024144]
[1735206191904,0.20050769,95874.0,95873.0,0.00124144]
[1735206192111,0.20950769,95874.0,95873.0,0.00224144]
[1735206192350,0.20350769,95874.0,95873.0,0.00024144]
[1735206192554,0.22650769,95874.0,95873.0,0.00024144]
[1735206192757,0.34549401,95874.0,95873.0,0.00224144]
[1735206192955,0.22350769,95874.0,95873.0,0.00124144]
[1735206194220,0.21750769,95874.0,95873.0,0.00024144]
[1735206194430,0.22250769,95874.0,95873.0,0.00024144]
[1735206194638,0.21950769,95874.0,95873.0,0.00024144]
[1735206194852,0.21950769,95874.0,95873.0,0.00124144]
[1735206195026,0.22550769,95874.0,95873.0,0.00124144]
[1735206195230,0.23150769,95874.0,95873.0,0.00024144]
[1735206195387,0.24050769,95874.0,95873.0,0.00124144]
[1735206195587,0.23450769,95874.0,95873.0,0.50124144]
[1735206195793,0.57253836,95874.0,95873.0,0.50024144]
[1735206195995,0.48350769,95874.0,95873.0,0.50024144]
[1735206196197,0.38350769,95874.0,95873.0,0.50024144]
[1735206196399,0.48350769,95874.0,95873.0,0.50024144]
[1735206197293,0.48150769,95874.0,95873.0,0.50024144]
[1735206197500,0.47150769,95874.0,95873.0,0.50024144]
[1735206197896,0.47250769,95874.0,95873.0,0.50024144]
[1735206198308,0.48750769,95874.0,95873.0,0.50124144]
[1735206198529,0.69149401,95874.0,95873.0,0.50124144]
[1735206198789,0.67149401,95874.0,95873.0,0.50024144]
[1735206199021,0.68441558,95874.0,95873.0,0.50124144]
[1735206199227,0.68441558,95874.0,95873.0,0.50024144]
[1735206199643,0.69341558,95874.0,95873.0,0.50124144]
[1735206200174,0.68941558,95874.0,95873.0,0.50124144]
[1735206200604,0.69541558,95874.0,95873.0,0.50124144]
[1735206200804,0.67841558,95874.0,95873.0,0.50024144]
[1735206201017,0.68741558,95874.0,95873.0,0.50124144]
[1735206201373,0.58342926,95874.0,95873.0,0.50124144]
[1735206210102,0.58351476,95874.0,95873.0,0.50124144]
[1735206211672,0.58351476,95874.0,95873.0,0.43865844]
[1735206212021,0.56851476,95874.0,95873.0,0.39593644]
[1735206212233,0.58351476,95874.0,95873.0,0.39693644]
[1735206212434,0.68750108,95874.0,95873.0,0.39693644]
[1735206215709,0.58151476,95874.0,95873.0,0.39693644]
[1735206217382,0.48151476,95874.0,95873.0,0.39693644]
[1735206218414,0.58151476,95874.0,95873.0,0.39693644]
[1735206223085,0.58151476,95874.0,95873.0,0.39710744]
[1735206223459,0.58151476,95874.0,95873.0,0.35538544]
[1735206223662,0.68550108,95874.0,95873.0,0.33452444]
[1735206224234,0.48151476,95874.0,95873.0,0.33452444]
[1735206226709,0.58151476,95874.0,95873.0,0.33452444]
[1735206226916,0.72134668,95874.0,95873.0,0.33452444]
[1735206227129,0.78406668,95874.0,95873.0,0.33452444]
[1735206227340,0.78406668,95874.0,95873.0,0.29280244]
[1735206227758,0.888053,95874.0,95873.0,0.20935844]
[1735206229057,0.888053,95874.0,95873.0,0.18849744]
[1735206229300,0.888053,95874.0,95873.0,0.16763644]
[1735206230003,0.74822108,95874.0,95873.0,0.16763644]
[1735206231986,0.58550108,95874.0,95873.0,0.16763644]
[1735206232221,0.62134668,95874.0,95873.0,0.16763644]
[1735206234474,0.57517977,95874.0,95873.0,0.16763644]
[1735206235599,0.48151476,95874.0,95873.0,0.16763644]
[1735206236422,0.48151476,95874.0,95873.0,0.17763644]
[1735206236724,0.58550108,95874.0,95873.0,0.17763644]
[1735206237981,0.68550108,95874.0,95873.0,0.17763644]
[1735206238781,0.77916609,95874.0,95873.0,0.17763644]
[1735206239974,0.87194364,95874.0,95873.0,0.17763644]
[1735206240722,0.68550108,95874.0,95873.0,0.17763644]
[1735206242086,0.74822108,95874.0,95873.0,0.17763644]
[1735206242724,0.98127428,95874.0,95873.0,0.15677544]
[1735206243783,0.74822108,95874.0,95873.0,0.15677544]
[1735206245625,0.74822108,95874.0,95873.0,0.10677544]
[1735206246041,0.64423476,95874.0,95873.0,0.10677544]
[1735206247176,0.13331476,95874.0,95873.0,0.10677544]
[1735206247402,0.23331476,95874.0,95873.0,0.10677544]
[1735206248091,0.35631476,95874.0,95873.0,0.10233224]
[1735206248333,0.87183476,95874.0,95873.0,0.10233224]
[1735206248567,0.97982108,95874.0,95873.0,0.10233224]
[1735206248768,1.12082108,95874.0,95873.0,0.10133224]
[1735206248974,1.11682108,95874.0,95873.0,0.10133224]
[1735206249231,1.13082108,95874.0,95873.0,0.10233224]
[1735206249406,1.13082108,95874.0,95873.0,0.10133224]
[1735206249604,1.13982108,95874.0,95873.0,0.10233224]
[1735206249820,1.19654108,95874.0,95873.0,0.10233224]
[1735206250028,1.18854108,95874.0,95873.0,0.03874924]
[1735206250245,1.19754108,95874.0,95873.0,0.03974924]
[1735206250462,1.29864108,95874.0,95873.0,0.03874924]
[1735206250877,1.08455476,95874.0,95873.0,0.03874924]
[1735206251317,1.09055476,95874.0,95873.0,0.03974924]
[1735206251749,1.08455476,95874.0,95873.0,0.03874924]
[1735206251926,1.09055476,95874.0,95873.0,0.03874924]
[1735206252127,0.99055476,95874.0,95873.0,0.03874924]
[1735206252352,1.20354108,95874.0,95873.0,0.03974924]
[1735206252971,1.75150708,95874.0,95873.0,0.01888824]
[1735206255059,0.1,95852.0,95848.0,0.0005659]
[1735206255266,0.581661,95849.0,95848.0,0.0005659]
[1735206255477,0.68564732,95849.0,95848.0,0.0005659]
[1735206255689,0.68915312,95849.0,95848.0,0.0005659]
[1735206256663,0.69815312,95849.0,95848.0,0.0015659]
[1735206256919,0.68915312,95849.0,95848.0,0.0005659]
[1735206257168,0.69815312,95849.0,95848.0,0.0015659]
[1735206257410,0.78202223,95849.0,95848.0,0.0005659]
[1735206257596,0.79102223,95849.0,95848.0,0.0015659]
[1735206258048,0.79102223,95849.0,95848.0,0.0017369]
[1735206258702,0.79502223,95849.0,95848.0,0.0017369]
[1735206258953,0.69502223,95849.0,95848.0,0.0017369]
[1735206259215,0.79502223,95849.0,95848.0,0.0017369]
[1735206259724,0.79102223,95849.0,95848.0,0.0017369]
[1735206259921,0.77702223,95849.0,95848.0,0.0007369]
[1735206260120,0.78602223,95849.0,95848.0,0.0007369]
[1735206260615,0.80698439,95849.0,95848.0,0.0007369]
[1735206260844,0.82637957,95849.0,95848.0,0.0007369]
[1735206261600,1.33102457,95849.0,95848.0,0.0007369]
[1735206261859,1.21426257,95849.0,95848.0,0.0007369]
[1735206262106,1.00071157,95849.0,95848.0,0.0007369]
[1735206262314,0.98875357,95849.0,95848.0,0.0007369]
[1735206262499,0.96675357,95849.0,95848.0,0.0007369]
[1735206262857,0.96675357,95849.0,95848.0,0.0017369]
[1735206262858,0.98275357,95849.0,95848.0,0.0017369]
[1735206263051,0.97375357,95849.0,95848.0,0.0017369]
[1735206263253,0.96675357,95849.0,95848.0,0.0007369]
[1735206263479,1.49727357,95849.0,95848.0,0.0017369]
[1735206263684,1.682553,95849.0,95848.0,0.0017369]
[1735206263882,1.591553,95849.0,95848.0,0.0017369]
[1735206264081,1.691553,95849.0,95848.0,0.0017369]
[1735206264667,1.49727357,95849.0,95848.0,0.0007369]
[1735206264990,1.50327357,95849.0,95848.0,0.0017369]
[1735206265191,1.46842457,95849.0,95848.0,0.0017369]
[1735206265392,1.46796757,95849.0,95848.0,0.0017369]
[1735206265591,1.34089957,95849.0,95848.0,0.0017369]
[1735206266030,1.45668657,95849.0,95848.0,0.0017369]
[1735206266195,1.24089957,95849.0,95848.0,0.0017369]
[1735206266388,1.45668657,95849.0,95848.0,0.0017369]
[1735206266904,1.6596451,95849.0,95848.0,0.0017369]
[1735206267635,1.6596451,95849.0,95848.0,9e-07]
[1735206267838,1.40361957,95849.0,95848.0,9e-07]
[1735206268974,1.30361957,95849.0,95848.0,9e-07]
[1735206269265,0.88403046,95849.0,95848.0,9e-07]
[1735206269407,0.85267312,95849.0,95848.0,0.0001719]
[1735206269619,0.64050632,95849.0,95848.0,0.0001719]
[1735206270072,0.73396125,95849.0,95848.0,0.0001719]
[1735206270738,0.71896125,95849.0,95848.0,0.000171]
[1735206270905,0.72296125,95849.0,95848.0,0.000171]
[1735206271107,0.63450632,95849.0,95848.0,0.001171]
[1735206271581,0.62950632,95849.0,95848.0,0.000171]
[1735206271935,0.63150632,95849.0,95848.0,0.000171]
[1735206272472,0.73549264,95849.0,95848.0,0.000171]
[1735206273100,0.65450632,95849.0,95848.0,0.000171]
[1735206277387,0.63150632,95849.0,95848.0,0.000171]
[1735206277587,0.52752,95849.0,95848.0,0.000171]
[1735206277876,0.52752,95849.0,95848.0,0.077471]
[1735206278256,0.52752,95849.0,95848.0,0.124471]
[1735206279322,0.52752,95849.0,95848.0,0.1786521]
[1735206279557,0.52752,95849.0,95848.0,0.124471]
[1735206279741,0.52752,95849.0,95848.0,0.274471]
[1735206280531,0.52552,95849.0,95848.0,0.274471]
[1735206280908,0.52152,95849.0,95848.0,0.70695899]
[1735206281109,0.01058873,95871.0,95848.0,0.81094531]
[1735206281320,0.001,95849.0,95848.0,0.81394531]
[1735206281860,0.001,95849.0,95848.0,0.23445732]
[1735206282003,0.0010856,95849.0,95848.0,0.23145732]
[1735206282502,8.56e-05,95849.0,95848.0,0.22845732]
[1735206283120,0.003,95871.0,95849.0,0.2743]
[1735206283346,0.004,95871.0,95866.0,0.1243]
[1735206283535,0.004,95871.0,95867.0,0.417244]
[1735206283876,0.003,95871.0,95867.0,0.417244]
[1735206284081,8.55e-05,95873.0,95867.0,0.208622]
[1735206284278,0.003,95871.0,95867.0,0.208622]
[1735206284690,0.003,95871.0,95867.0,0.2419142]
[1735206285535,0.001,95871.0,95867.0,0.2419142]
[1735206285956,0.004,95871.0,95867.0,0.208622]
[1735206286130,0.001,95871.0,95867.0,0.208622]
[1735206286529,0.004,95871.0,95867.0,0.208622]
[1735206286746,8.55e-05,95873.0,95867.0,0.208622]
[1735206286985,0.001,95871.0,95867.0,0.208622]
[1735206287226,0.001,95871.0,95867.0,0.002]
[1735206287433,0.001,95871.0,95866.0,0.1243]
[1735206287639,8.55e-05,95873.0,95866.0,0.1243]
[1735206287846,8.55e-05,95873.0,95867.0,0.002]
[1735206288260,8.55e-05,95873.0,95866.0,0.1243]
[1735206288649,8.55e-05,95873.0,95866.0,0.1263]
[1735206288854,8.55e-05,95873.0,95867.0,0.002]
[1735206289422,8.55e-05,95873.0,95868.0,0.20862]
[1735206290762,8.55e-05,95873.0,95870.0,0.208615]
[1735206290965,8.55e-05,95873.0,95872.0,0.208611]
[1735206291182,8.55e-05,95873.0,95872.0,0.289511]
[1735206291358,8.55e-05,95873.0,95872.0,0.334811]
[1735206291552,8.55e-05,95873.0,95872.0,0.3893536]